[Event "Live Chess"]
[Site "Chess.com"]
[Date "2023.05.21"]
[Round "-"]
[White "seasidecastle27"]
[Black "Ferrarifan27"]
[Result "1/2-1/2"]
[WhiteElo "1904"]
[BlackElo "2105"]
[TimeControl "300"]
[EndTime "3:08:13 PDT"]
[Termination "Game drawn by repetition"]

1. d4 {[%clk 0:04:57.8]} 1... Nf6 {[%clk 0:04:57.9]} 2. Nf3 {[%clk 0:04:56.2]}
2... e6 {[%clk 0:04:54.5]} 3. Bg5 {[%clk 0:04:53.6]} 3... d5 {[%clk 0:04:52.3]}
4. e3 {[%clk 0:04:52.6]} 4... Be7 {[%clk 0:04:49.4]} 5. Bd3 {[%clk 0:04:50.7]}
5... Nc6 {[%clk 0:04:41.8]} 6. c3 {[%clk 0:04:48.1]} 6... Bd7 {[%clk 0:04:15.1]}
7. Nbd2 {[%clk 0:04:46]} 7... O-O {[%clk 0:04:11.4]} 8. Ne5 {[%clk 0:04:39.7]}
8... Nxe5 {[%clk 0:04:09.8]} 9. dxe5 {[%clk 0:04:37.7]} 9... Ne8 {[%clk
0:04:08.8]} 10. h4 {[%clk 0:04:13.3]} 10... h6 {[%clk 0:04:04.5]} 11. Qg4 {[%clk
0:04:02.8]} 11... hxg5 {[%clk 0:03:53.8]} 12. hxg5 {[%clk 0:03:52.1]} 12... Bxg5
{[%clk 0:03:50.6]} 13. Bh7+ {[%clk 0:03:44.9]} 13... Kh8 {[%clk 0:03:49.2]} 14.
Bc2+ {[%clk 0:03:41.9]} 14... Bh6 {[%clk 0:03:46.7]} 15. Nf3 {[%clk 0:03:26.3]}
15... f5 {[%clk 0:03:38.9]} 16. exf6 {[%clk 0:03:02.3]} 16... Nxf6 {[%clk
0:03:26.6]} 17. Qg6 {[%clk 0:02:59]} 17... Qe8 {[%clk 0:03:17.9]} 18. Rxh6+
{[%clk 0:02:56.5]} 18... gxh6 {[%clk 0:03:16.8]} 19. Qxh6+ {[%clk 0:02:54.4]}
19... Kg8 {[%clk 0:03:15.8]} 20. Qg5+ {[%clk 0:02:46.9]} 20... Kh8 {[%clk
0:03:14.7]} 21. Qh6+ {[%clk 0:02:45.1]} 21... Kg8 {[%clk 0:03:13.1]} 22. Qg5+
{[%clk 0:02:43.8]} 22... Kh8 {[%clk 0:03:12.4]} 23. Qh6+ {[%clk 0:02:24.7]}
1/2-1/2

[Event "Live Chess"]
[Site "Chess.com"]
[Date "2023.05.21"]
[Round "-"]
[White "JohanKjeldahl"]
[Black "LiamBellwood"]
[Result "1-0"]
[WhiteElo "1894"]
[BlackElo "1946"]
[TimeControl "300"]
[EndTime "3:08:17 PDT"]
[Termination "JohanKjeldahl won by resignation"]

1. c4 {[%clk 0:04:57.3]} 1... e6 {[%clk 0:04:59.9]} 2. Nc3 {[%clk 0:04:55.6]}
2... f5 {[%clk 0:04:59.8]} 3. d4 {[%clk 0:04:54.2]} 3... Nf6 {[%clk 0:04:59.4]}
4. g3 {[%clk 0:04:53.4]} 4... Be7 {[%clk 0:04:58.6]} 5. Bg2 {[%clk 0:04:53]}
5... O-O {[%clk 0:04:58.5]} 6. b3 {[%clk 0:04:51.6]} 6... d6 {[%clk 0:04:56.1]}
7. Bb2 {[%clk 0:04:51]} 7... c6 {[%clk 0:04:51.2]} 8. e4 {[%clk 0:04:45.4]} 8...
e5 {[%clk 0:04:47.7]} 9. dxe5 {[%clk 0:04:41]} 9... dxe5 {[%clk 0:04:47.6]} 10.
exf5 {[%clk 0:04:36.6]} 10... Bxf5 {[%clk 0:04:44.7]} 11. Nf3 {[%clk 0:04:31.6]}
11... Nbd7 {[%clk 0:04:31.2]} 12. O-O {[%clk 0:04:30]} 12... Bg4 {[%clk
0:04:21.3]} 13. Qc2 {[%clk 0:04:25.2]} 13... Qe8 {[%clk 0:04:15.8]} 14. h3
{[%clk 0:04:17.6]} 14... Bh5 {[%clk 0:04:08.5]} 15. Rae1 {[%clk 0:04:06.9]}
15... Bc5 {[%clk 0:03:57.5]} 16. Ne4 {[%clk 0:04:00.2]} 16... Bb6 {[%clk
0:03:50.4]} 17. c5 {[%clk 0:03:58]} 17... Bc7 {[%clk 0:03:49.7]} 18. Nd6 {[%clk
0:03:55.6]} 18... Bxd6 {[%clk 0:03:32.6]} 19. cxd6 {[%clk 0:03:53.5]} 19... Nd5
{[%clk 0:03:20.9]} 20. Nxe5 {[%clk 0:03:46.1]} 20... Nxe5 {[%clk 0:03:18.7]} 21.
Rxe5 {[%clk 0:03:44.5]} 21... Qf7 {[%clk 0:03:15.5]} 22. Bxd5 {[%clk 0:03:31.8]}
22... cxd5 {[%clk 0:03:15.4]} 23. Re7 {[%clk 0:03:29.3]} 23... Bg6 {[%clk
0:03:09.5]} 24. Qc7 {[%clk 0:03:23.3]} 1-0

[Event "Live Chess"]
[Site "Chess.com"]
[Date "2023.05.21"]
[Round "-"]
[White "Brooms1989"]
[Black "raminguy"]
[Result "0-1"]
[WhiteElo "1124"]
[BlackElo "1956"]
[TimeControl "300"]
[EndTime "3:08:32 PDT"]
[Termination "raminguy won by resignation"]

1. e4 {[%clk 0:04:55.4]} 1... e5 {[%clk 0:04:58.6]} 2. Nc3 {[%clk 0:04:52.7]}
2... Nc6 {[%clk 0:04:58.1]} 3. f4 {[%clk 0:04:51.2]} 3... Nf6 {[%clk 0:04:58]}
4. fxe5 {[%clk 0:04:50]} 4... Nxe5 {[%clk 0:04:57.2]} 5. Nf3 {[%clk 0:04:49.2]}
5... Nxf3+ {[%clk 0:04:56.2]} 6. Qxf3 {[%clk 0:04:49.1]} 6... Bb4 {[%clk
0:04:49.8]} 7. Bc4 {[%clk 0:04:43.6]} 7... O-O {[%clk 0:04:48.4]} 8. O-O {[%clk
0:04:41]} 8... d6 {[%clk 0:04:46]} 9. d4 {[%clk 0:04:38.7]} 9... Bg4 {[%clk
0:04:42.9]} 10. Qg3 {[%clk 0:04:31.3]} 10... Bxc3 {[%clk 0:04:37.4]} 11. bxc3
{[%clk 0:04:30.2]} 11... Bh5 {[%clk 0:04:32.9]} 12. Bh6 {[%clk 0:04:11.5]} 12...
Bg6 {[%clk 0:04:31.8]} 13. Bg5 {[%clk 0:04:06.2]} 13... Nxe4 {[%clk 0:04:30.5]}
14. Bxd8 {[%clk 0:03:42.1]} 14... Nxg3 {[%clk 0:04:28.9]} 15. hxg3 {[%clk
0:03:42]} 15... Raxd8 {[%clk 0:04:27.1]} 16. Rfe1 {[%clk 0:03:38.1]} 16... Rfe8
{[%clk 0:04:24.2]} 17. Bd3 {[%clk 0:03:36.1]} 17... Re6 {[%clk 0:04:09.2]} 18.
Rxe6 {[%clk 0:03:29.8]} 18... fxe6 {[%clk 0:04:08.1]} 19. Re1 {[%clk 0:03:28.6]}
19... Re8 {[%clk 0:04:07.1]} 20. Rf1 {[%clk 0:03:16.8]} 20... e5 {[%clk
0:03:56]} 21. Bxg6 {[%clk 0:03:09.9]} 21... hxg6 {[%clk 0:03:52.1]} 22. Re1
{[%clk 0:03:05]} 22... e4 {[%clk 0:03:49.9]} 23. Kf2 {[%clk 0:03:02.4]} 23... d5
{[%clk 0:03:46.7]} 24. Ke3 {[%clk 0:03:00.4]} 24... Rf8 {[%clk 0:03:42.7]} 25.
Ke2 {[%clk 0:02:57.5]} 25... Rf6 {[%clk 0:03:38.2]} 26. Rf1 {[%clk 0:02:55]}
26... Rxf1 {[%clk 0:03:36.5]} 27. Kxf1 {[%clk 0:02:54.9]} 27... Kf7 {[%clk
0:03:34.7]} 28. Ke2 {[%clk 0:02:54.4]} 28... Kf6 {[%clk 0:03:34]} 29. Ke3 {[%clk
0:02:54.1]} 29... Kf5 {[%clk 0:03:32.3]} 30. a4 {[%clk 0:02:45.8]} 30... Kg4
{[%clk 0:03:29.1]} 31. Kf2 {[%clk 0:02:44.6]} 31... b6 {[%clk 0:03:27.4]} 32. c4
{[%clk 0:02:38.4]} 32... c6 {[%clk 0:03:25.9]} 33. cxd5 {[%clk 0:02:36.9]} 33...
cxd5 {[%clk 0:03:24.9]} 34. c3 {[%clk 0:02:35.2]} 34... Kf5 {[%clk 0:03:23.8]}
35. Ke3 {[%clk 0:02:34.1]} 35... g5 {[%clk 0:03:22.1]} 36. Kf2 {[%clk
0:02:33.2]} 36... g4 {[%clk 0:03:16.4]} 37. Ke3 {[%clk 0:02:31.9]} 37... g5
{[%clk 0:03:15.6]} 38. Kf2 {[%clk 0:02:30.8]} 38... Ke6 {[%clk 0:03:14.8]} 39.
Ke3 {[%clk 0:02:30]} 39... Kd6 {[%clk 0:03:13.5]} 40. Kd2 {[%clk 0:02:21.4]}
40... a6 {[%clk 0:03:11.7]} 41. Ke3 {[%clk 0:02:15.1]} 41... b5 {[%clk
0:03:09.4]} 42. axb5 {[%clk 0:02:14.1]} 42... axb5 {[%clk 0:03:08.8]} 43. Kd2
{[%clk 0:02:12.3]} 43... Kc6 {[%clk 0:03:08]} 44. Ke3 {[%clk 0:02:07.7]} 44...
Kb6 {[%clk 0:03:07.3]} 45. Kd2 {[%clk 0:02:06.9]} 45... Ka5 {[%clk 0:03:06.7]}
46. Kc2 {[%clk 0:02:06.2]} 46... Ka4 {[%clk 0:03:06]} 47. Kd2 {[%clk 0:02:04.1]}
47... Kb3 {[%clk 0:03:05]} 48. Kc1 {[%clk 0:02:00.3]} 48... Kxc3 {[%clk
0:03:04]} 49. Kd1 {[%clk 0:01:59]} 49... Kxd4 {[%clk 0:03:02.5]} 0-1

[Event "Live Chess"]
[Site "Chess.com"]
[Date "2023.05.21"]
[Round "-"]
[White "Davidagye"]
[Black "Crowded_House"]
[Result "1-0"]
[WhiteElo "1676"]
[BlackElo "1642"]
[TimeControl "300"]
[EndTime "3:08:53 PDT"]
[Termination "Davidagye won by checkmate"]

1. e4 {[%clk 0:04:58.3]} 1... e6 {[%clk 0:04:58.9]} 2. d4 {[%clk 0:04:57.2]}
2... d5 {[%clk 0:04:58.6]} 3. Nc3 {[%clk 0:04:55.2]} 3... Bb4 {[%clk 0:04:54.6]}
4. e5 {[%clk 0:04:53.4]} 4... c5 {[%clk 0:04:51.7]} 5. a3 {[%clk 0:04:52]} 5...
Bxc3+ {[%clk 0:04:50.1]} 6. bxc3 {[%clk 0:04:50.8]} 6... Qb6 {[%clk 0:04:46.3]}
7. Qg4 {[%clk 0:04:45.2]} 7... g6 {[%clk 0:04:30]} 8. Be3 {[%clk 0:04:28.9]}
8... Ne7 {[%clk 0:04:24.2]} 9. dxc5 {[%clk 0:04:25.2]} 9... Qb2 {[%clk
0:04:19.4]} 10. Rd1 {[%clk 0:04:21.4]} 10... Qxc3+ {[%clk 0:04:17.9]} 11. Bd2
{[%clk 0:04:20.5]} 11... Qxe5+ {[%clk 0:04:15.7]} 12. Ne2 {[%clk 0:04:17.4]}
12... h5 {[%clk 0:04:05.9]} 13. Qf3 {[%clk 0:04:12.5]} 13... Nf5 {[%clk
0:03:55.7]} 14. Bc3 {[%clk 0:04:09.6]} 14... d4 {[%clk 0:03:39.3]} 15. Rxd4
{[%clk 0:04:04.7]} 15... Nxd4 {[%clk 0:03:30.4]} 16. Bxd4 {[%clk 0:03:59.1]}
16... Qc7 {[%clk 0:03:16.7]} 17. Bxh8 {[%clk 0:03:53.8]} 17... Qxc5 {[%clk
0:03:15.7]} 18. Nc3 {[%clk 0:03:47.1]} 18... Qxa3 {[%clk 0:03:09.9]} 19. Bb5+
{[%clk 0:03:40.5]} 19... Nd7 {[%clk 0:02:51.6]} 20. O-O {[%clk 0:03:38.3]} 20...
a6 {[%clk 0:02:48]} 21. Bxd7+ {[%clk 0:03:36.6]} 21... Bxd7 {[%clk 0:02:46.1]}
22. Qxb7 {[%clk 0:03:34]} 22... Rc8 {[%clk 0:02:41.3]} 23. Rd1 {[%clk
0:03:31.2]} 23... Qe7 {[%clk 0:02:20.2]} 24. Bf6 {[%clk 0:03:27.6]} 24... Qxf6
{[%clk 0:02:13]} 25. Qxd7+ {[%clk 0:03:21.4]} 25... Kf8 {[%clk 0:02:06.7]} 26.
Qxc8+ {[%clk 0:03:20.1]} 26... Kg7 {[%clk 0:02:04.5]} 27. Qc4 {[%clk 0:03:15.7]}
27... e5 {[%clk 0:01:58.1]} 28. Nd5 {[%clk 0:03:13.9]} 28... Qd6 {[%clk
0:01:52]} 29. Qc3 {[%clk 0:03:10.3]} 29... f6 {[%clk 0:01:48.6]} 30. Ne3 {[%clk
0:02:55.1]} 30... Qb6 {[%clk 0:01:41.6]} 31. Rd7+ {[%clk 0:02:50.5]} 31... Kh6
{[%clk 0:01:39.6]} 32. h4 {[%clk 0:02:33.4]} 32... Qb5 {[%clk 0:01:38.5]} 33.
Qd2 {[%clk 0:02:22]} 33... g5 {[%clk 0:01:31.8]} 34. Nf5+ {[%clk 0:02:19.4]}
34... Kg6 {[%clk 0:01:30.7]} 35. Qd3 {[%clk 0:02:15.6]} 35... Qb1+ {[%clk
0:01:11.8]} 36. Kh2 {[%clk 0:02:14.2]} 36... Qc1 {[%clk 0:01:06.5]} 37. Ng3+
{[%clk 0:02:10]} 37... f5 {[%clk 0:00:54.6]} 38. Qxf5+ {[%clk 0:02:08]} 38...
Kh6 {[%clk 0:00:53.6]} 39. Rh7# {[%clk 0:02:07.4]} 1-0

[Event "Live Chess"]
[Site "Chess.com"]
[Date "2023.05.21"]
[Round "-"]
[White "stevochess11"]
[Black "whitedjohn"]
[Result "1-0"]
[WhiteElo "1723"]
[BlackElo "1649"]
[TimeControl "300"]
[EndTime "3:09:01 PDT"]
[Termination "stevochess11 won on time"]

1. d4 {[%clk 0:04:56.2]} 1... Nf6 {[%clk 0:04:59.6]} 2. Nf3 {[%clk 0:04:53.5]}
2... c5 {[%clk 0:04:58.6]} 3. e3 {[%clk 0:04:52.7]} 3... cxd4 {[%clk 0:04:57.1]}
4. exd4 {[%clk 0:04:52.2]} 4... d5 {[%clk 0:04:55.3]} 5. Bd3 {[%clk 0:04:51.4]}
5... Bg4 {[%clk 0:04:52.5]} 6. c4 {[%clk 0:04:46]} 6... e6 {[%clk 0:04:51.5]} 7.
cxd5 {[%clk 0:04:40.4]} 7... Nxd5 {[%clk 0:04:42.3]} 8. Nc3 {[%clk 0:04:38.7]}
8... Qa5 {[%clk 0:04:36.8]} 9. Qa4+ {[%clk 0:04:35.4]} 9... Qxa4 {[%clk
0:04:30.8]} 10. Nxa4 {[%clk 0:04:32.7]} 10... Bxf3 {[%clk 0:04:28.8]} 11. gxf3
{[%clk 0:04:31.8]} 11... Nc6 {[%clk 0:04:22.1]} 12. Be3 {[%clk 0:04:27]} 12...
Bb4+ {[%clk 0:04:19.6]} 13. Kf1 {[%clk 0:04:23.7]} 13... O-O {[%clk 0:04:08.1]}
14. Rg1 {[%clk 0:04:18.2]} 14... g6 {[%clk 0:04:03.1]} 15. Bh6 {[%clk
0:04:11.2]} 15... Rfc8 {[%clk 0:03:55.7]} 16. a3 {[%clk 0:04:09.7]} 16... Be7
{[%clk 0:03:52.9]} 17. Rc1 {[%clk 0:04:06.2]} 17... Nxd4 {[%clk 0:03:47]} 18.
Rxc8+ {[%clk 0:04:02.4]} 18... Rxc8 {[%clk 0:03:45.4]} 19. Kg2 {[%clk
0:03:58.4]} 19... b5 {[%clk 0:03:37]} 20. Be3 {[%clk 0:03:52.2]} 20... Bf6
{[%clk 0:02:53.2]} 21. Bxd4 {[%clk 0:03:44.6]} 21... Bxd4 {[%clk 0:02:51]} 22.
Bxb5 {[%clk 0:03:28.4]} 22... Rb8 {[%clk 0:02:48.8]} 23. Bc6 {[%clk 0:03:20.7]}
23... Bxb2 {[%clk 0:02:34.2]} 24. Nxb2 {[%clk 0:03:14.9]} 24... Rxb2 {[%clk
0:02:32]} 25. Bxd5 {[%clk 0:03:13.8]} 25... exd5 {[%clk 0:02:30.9]} 26. Rd1
{[%clk 0:03:12]} 26... Rb5 {[%clk 0:02:29.3]} 27. Kg3 {[%clk 0:03:10.3]} 27...
Ra5 {[%clk 0:02:27.9]} 28. Rd3 {[%clk 0:03:08.5]} 28... f5 {[%clk 0:02:25.3]}
29. Kf4 {[%clk 0:03:05.7]} 29... Kf7 {[%clk 0:02:24.7]} 30. Ke5 {[%clk
0:03:04.6]} 30... d4+ {[%clk 0:02:07.7]} 31. Kxd4 {[%clk 0:03:02.8]} 31... Ke6
{[%clk 0:02:05]} 32. Re3+ {[%clk 0:02:52.9]} 32... Kd6 {[%clk 0:02:03.5]} 33.
Rc3 {[%clk 0:02:48.7]} 33... Ra4+ {[%clk 0:01:59.5]} 34. Ke3 {[%clk 0:02:47]}
34... Rh4 {[%clk 0:01:55.7]} 35. Rd3+ {[%clk 0:02:36.1]} 35... Kc6 {[%clk
0:01:53.3]} 36. Rc3+ {[%clk 0:02:35]} 36... Kb5 {[%clk 0:01:50.2]} 37. Rc7
{[%clk 0:02:30.5]} 37... a5 {[%clk 0:01:48.6]} 38. Rb7+ {[%clk 0:02:24.5]} 38...
Ka4 {[%clk 0:01:47.3]} 39. Ra7 {[%clk 0:02:21.6]} 39... Rxh2 {[%clk 0:01:45]}
40. f4 {[%clk 0:02:16.8]} 40... Rh3+ {[%clk 0:01:41.9]} 41. f3 {[%clk
0:02:15.6]} 41... Kxa3 {[%clk 0:01:34]} 42. Rxa5+ {[%clk 0:02:14.3]} 42... Kb4
{[%clk 0:01:33]} 43. Ra1 {[%clk 0:02:10.3]} 43... Rh2 {[%clk 0:01:29.9]} 44. Kd4
{[%clk 0:02:05.1]} 44... Rd2+ {[%clk 0:01:27]} 45. Ke3 {[%clk 0:02:04]} 45...
Rd7 {[%clk 0:01:24.3]} 46. Rb1+ {[%clk 0:01:59.8]} 46... Kc3 {[%clk 0:01:22.6]}
47. Rc1+ {[%clk 0:01:58.1]} 47... Kb2 {[%clk 0:01:21.6]} 48. Rc8 {[%clk
0:01:55]} 48... Rg7 {[%clk 0:01:16.2]} 49. Kd2 {[%clk 0:01:52.6]} 49... h5
{[%clk 0:01:10.2]} 50. Rb8+ {[%clk 0:01:51.3]} 50... Ka3 {[%clk 0:01:08.4]} 51.
Kc3 {[%clk 0:01:49.6]} 51... Ka4 {[%clk 0:01:07]} 52. Kc4 {[%clk 0:01:45.7]}
52... Ka5 {[%clk 0:01:06]} 53. Kd5 {[%clk 0:01:43.3]} 53... Rh7 {[%clk
0:00:55.8]} 54. Rg8 {[%clk 0:01:34]} 54... Rh6 {[%clk 0:00:52.4]} 55. Kc5 {[%clk
0:01:28.1]} 55... Ka6 {[%clk 0:00:50.2]} 56. Rb8 {[%clk 0:01:23.7]} 56... Ka7
{[%clk 0:00:48.8]} 57. Rb2 {[%clk 0:01:21.6]} 57... h4 {[%clk 0:00:46.5]} 58.
Kc6 {[%clk 0:01:16]} 58... h3 {[%clk 0:00:42.8]} 59. Kc7 {[%clk 0:01:14.3]}
59... Ka6 {[%clk 0:00:41.3]} 60. Kc6 {[%clk 0:01:12.9]} 60... Ka5 {[%clk
0:00:40.3]} 61. Kc5 {[%clk 0:01:12]} 61... Ka4 {[%clk 0:00:39.3]} 62. Kc4 {[%clk
0:01:10.6]} 62... Ka3 {[%clk 0:00:38.3]} 63. Rh2 {[%clk 0:01:08.9]} 63... Rh4
{[%clk 0:00:33.9]} 64. Kd5 {[%clk 0:00:56.8]} 64... Kb4 {[%clk 0:00:32.3]} 65.
Ke5 {[%clk 0:00:55.8]} 65... Kc4 {[%clk 0:00:28.4]} 66. Rc2+ {[%clk 0:00:45.5]}
66... Kd3 {[%clk 0:00:27]} 67. Rh2 {[%clk 0:00:44.3]} 67... Ke3 {[%clk
0:00:25.3]} 68. Kf6 {[%clk 0:00:41.7]} 68... Kxf3 {[%clk 0:00:21.1]} 69. Kxg6
{[%clk 0:00:40.8]} 69... Kg3 {[%clk 0:00:19.9]} 70. Rh1 {[%clk 0:00:37.6]} 70...
h2 {[%clk 0:00:18.8]} 71. Kxf5 {[%clk 0:00:35]} 71... Kg2 {[%clk 0:00:17.8]} 72.
Kg5 {[%clk 0:00:32.4]} 72... Kxh1 {[%clk 0:00:14.2]} 73. Kxh4 {[%clk 0:00:31.5]}
73... Kg2 {[%clk 0:00:12.7]} 74. f5 {[%clk 0:00:29.5]} 74... h1=Q+ {[%clk
0:00:11.8]} 75. Kg5 {[%clk 0:00:29.4]} 75... Qh8 {[%clk 0:00:09.2]} 76. f6
{[%clk 0:00:27.9]} 76... Qg8+ {[%clk 0:00:08]} 77. Kf5 {[%clk 0:00:27.1]} 77...
Kf3 {[%clk 0:00:07]} 78. Ke5 {[%clk 0:00:24.6]} 78... Qf7 {[%clk 0:00:05.8]} 79.
Kf5 {[%clk 0:00:23.4]} 79... Kg3 {[%clk 0:00:04.6]} 80. Kg5 {[%clk 0:00:22.2]}
80... Kf3 {[%clk 0:00:02.6]} 81. Kf5 {[%clk 0:00:21.4]} 81... Qh5+ {[%clk
0:00:01.3]} 82. Ke6 {[%clk 0:00:20.2]} 1-0

[Event "Live Chess"]
[Site "Chess.com"]
[Date "2023.05.21"]
[Round "-"]
[White "NatashaRegan"]
[Black "WilliamofOrange16th"]
[Result "0-1"]
[WhiteElo "1714"]
[BlackElo "1866"]
[TimeControl "300"]
[EndTime "3:09:05 PDT"]
[Termination "WilliamofOrange16th won on time"]

1. e4 {[%clk 0:04:57]} 1... d6 {[%clk 0:04:54]} 2. d4 {[%clk 0:04:53.6]} 2...
Nf6 {[%clk 0:04:53.3]} 3. Nc3 {[%clk 0:04:51.3]} 3... Nbd7 {[%clk 0:04:52.4]} 4.
Be3 {[%clk 0:04:47.4]} 4... e5 {[%clk 0:04:51.5]} 5. Qd2 {[%clk 0:04:35.4]} 5...
Be7 {[%clk 0:04:49.7]} 6. h3 {[%clk 0:04:31.5]} 6... O-O {[%clk 0:04:48.6]} 7.
Nf3 {[%clk 0:04:30.2]} 7... c6 {[%clk 0:04:48.1]} 8. O-O-O {[%clk 0:04:25.8]}
8... Qc7 {[%clk 0:04:47.2]} 9. Nh4 {[%clk 0:04:09.8]} 9... exd4 {[%clk 0:04:45]}
10. Bxd4 {[%clk 0:04:05.9]} 10... Nc5 {[%clk 0:04:38]} 11. Nf5 {[%clk
0:04:01.3]} 11... Bxf5 {[%clk 0:04:27.7]} 12. exf5 {[%clk 0:03:57]} 12... Nce4
{[%clk 0:04:10.8]} 13. Qf4 {[%clk 0:03:49.9]} 13... Nxc3 {[%clk 0:04:08.1]} 14.
Bxc3 {[%clk 0:03:47.4]} 14... Rad8 {[%clk 0:04:02]} 15. Bc4 {[%clk 0:03:41.2]}
15... b5 {[%clk 0:03:58.9]} 16. Bb3 {[%clk 0:03:37.8]} 16... a5 {[%clk
0:03:56.4]} 17. a4 {[%clk 0:03:32.8]} 17... b4 {[%clk 0:03:28.8]} 18. Bd4 {[%clk
0:03:20.4]} 18... h6 {[%clk 0:03:21.2]} 19. g4 {[%clk 0:03:17.4]} 19... Nd5
{[%clk 0:03:18.9]} 20. Bxd5 {[%clk 0:03:10.8]} 20... Bg5 {[%clk 0:03:17.3]} 21.
Qxg5 {[%clk 0:03:00.9]} 21... hxg5 {[%clk 0:03:15.9]} 22. Bf3 {[%clk 0:02:54.8]}
22... f6 {[%clk 0:03:07.7]} 23. h4 {[%clk 0:02:51]} 23... d5 {[%clk 0:03:06.1]}
24. Kb1 {[%clk 0:02:43.5]} 24... Qf4 {[%clk 0:03:01.8]} 25. Rd3 {[%clk
0:02:38.4]} 25... Rfe8 {[%clk 0:02:50.3]} 26. hxg5 {[%clk 0:02:34.8]} 26... Qxg5
{[%clk 0:02:46]} 27. Be3 {[%clk 0:02:31.5]} 27... Rxe3 {[%clk 0:02:42.4]} 28.
Rxe3 {[%clk 0:02:28.9]} 28... Kf7 {[%clk 0:02:27.6]} 29. Re6 {[%clk 0:02:21.6]}
29... Qf4 {[%clk 0:02:24.4]} 30. Bd1 {[%clk 0:02:14.6]} 30... Rd6 {[%clk
0:02:23.5]} 31. Rxd6 {[%clk 0:02:07.2]} 31... Qxd6 {[%clk 0:02:22]} 32. Re1
{[%clk 0:02:05.2]} 32... Qf4 {[%clk 0:02:06.7]} 33. Re6 {[%clk 0:01:55.9]} 33...
c5 {[%clk 0:01:55.8]} 34. Be2 {[%clk 0:01:47]} 34... c4 {[%clk 0:01:50.7]} 35.
b3 {[%clk 0:01:19.7]} 35... Qd4 {[%clk 0:01:17]} 36. bxc4 {[%clk 0:01:08]} 36...
dxc4 {[%clk 0:01:16.9]} 37. Rc6 {[%clk 0:01:04.9]} 37... c3 {[%clk 0:00:50.1]}
38. Bc4+ {[%clk 0:01:00.6]} 38... Ke7 {[%clk 0:00:48.2]} 39. Re6+ {[%clk
0:00:45.1]} 39... Kd7 {[%clk 0:00:47.2]} 40. Bb3 {[%clk 0:00:41.7]} 40... Qd1+
{[%clk 0:00:44.8]} 41. Ka2 {[%clk 0:00:39.5]} 41... Qxg4 {[%clk 0:00:44.5]} 42.
Ra6 {[%clk 0:00:33.4]} 42... Qxf5 {[%clk 0:00:43.7]} 43. Ra7+ {[%clk 0:00:20.8]}
43... Kc6 {[%clk 0:00:42.5]} 44. Ra6+ {[%clk 0:00:16.7]} 44... Kb7 {[%clk
0:00:40.3]} 45. Rd6 {[%clk 0:00:13.6]} 45... Qxf2 {[%clk 0:00:39.3]} 46. Bd5+
{[%clk 0:00:10.8]} 46... Kc7 {[%clk 0:00:37]} 47. Rc6+ {[%clk 0:00:09.7]} 47...
Kd7 {[%clk 0:00:36.1]} 48. Kb3 {[%clk 0:00:09.1]} 48... Qd4 {[%clk 0:00:33.6]}
49. Bc4 {[%clk 0:00:07.2]} 49... f5 {[%clk 0:00:32.5]} 50. Ra6 {[%clk
0:00:05.2]} 50... Qc5 {[%clk 0:00:30.4]} 51. Bb5+ {[%clk 0:00:02.8]} 51... Ke7
{[%clk 0:00:29.5]} 52. Rxa5 {[%clk 0:00:02.1]} 52... Qd5+ {[%clk 0:00:27.6]} 53.
Bc4 {[%clk 0:00:00.4]} 53... Qxa5 {[%clk 0:00:24.8]} 0-1

[Event "Live Chess"]
[Site "Chess.com"]
[Date "2023.05.21"]
[Round "-"]
[White "MarkLim1"]
[Black "nigelst"]
[Result "0-1"]
[WhiteElo "1699"]
[BlackElo "1714"]
[TimeControl "300"]
[EndTime "3:09:05 PDT"]
[Termination "nigelst won by resignation"]

1. d4 {[%clk 0:04:59.6]} 1... Nf6 {[%clk 0:04:57.9]} 2. Nf3 {[%clk 0:04:58.9]}
2... e6 {[%clk 0:04:56.9]} 3. e3 {[%clk 0:04:57.1]} 3... c5 {[%clk 0:04:54.4]}
4. Bd3 {[%clk 0:04:56]} 4... Nc6 {[%clk 0:04:53.3]} 5. c4 {[%clk 0:04:52.9]}
5... d6 {[%clk 0:04:48.7]} 6. O-O {[%clk 0:04:51.3]} 6... Be7 {[%clk 0:04:46]}
7. Nc3 {[%clk 0:04:50.5]} 7... e5 {[%clk 0:04:44.9]} 8. d5 {[%clk 0:04:48.1]}
8... Nb4 {[%clk 0:04:42]} 9. e4 {[%clk 0:04:46.9]} 9... Nxd3 {[%clk 0:04:40.2]}
10. Qxd3 {[%clk 0:04:45.8]} 10... Bg4 {[%clk 0:04:37.2]} 11. Nd2 {[%clk
0:04:40.1]} 11... O-O {[%clk 0:04:34.8]} 12. f4 {[%clk 0:04:38.4]} 12... exf4
{[%clk 0:04:23.4]} 13. Rxf4 {[%clk 0:04:36]} 13... Bd7 {[%clk 0:04:18.9]} 14.
Nf1 {[%clk 0:04:18.7]} 14... Ng4 {[%clk 0:04:17]} 15. h3 {[%clk 0:04:08.8]}
15... Ne5 {[%clk 0:04:16.3]} 16. Qe2 {[%clk 0:04:02]} 16... Bg5 {[%clk
0:04:07.4]} 17. Rf2 {[%clk 0:03:57.5]} 17... Bxc1 {[%clk 0:04:03.1]} 18. Rxc1
{[%clk 0:03:56.1]} 18... Qg5 {[%clk 0:04:01.7]} 19. Re1 {[%clk 0:03:47.9]} 19...
Bxh3 {[%clk 0:03:54.5]} 20. Nh2 {[%clk 0:03:36]} 20... Bd7 {[%clk 0:03:50.4]}
21. Nf3 {[%clk 0:03:28.5]} 21... Nxf3+ {[%clk 0:03:47.4]} 22. Qxf3 {[%clk
0:03:27.7]} 22... f5 {[%clk 0:03:36.3]} 23. Ref1 {[%clk 0:03:22.1]} 23... f4
{[%clk 0:03:23.4]} 24. Re2 {[%clk 0:03:08.2]} 24... Bg4 {[%clk 0:03:20.3]} 0-1